[Event "48th Indian U15-ch Open 2023"]
[Site "Jalgaon"]
[Date "2023.12.27"]
[Round "1.1"]
[White "Mayank Chakraborty"]
[Black "Piyush Tandon"]
[Result "1-0"]
[WhiteElo "2403"]
[BlackElo "1456"]
[PlyCount "73"]
[EventDate "2023.12.30"]
[EventType "swiss"]
[EventCountry "IND"]
[TimeControl "5400+30"]

1. d4 {[%emt 0:00:02]} Nf6 {[%emt 0:00:22]} 2. c4 {[%emt 0:00:04]} e6 {[%emt 0:01:04]} 3. Nf3 {[%emt 0:00:08]} d5 {[%emt 0:01:21]} 4. Nc3 {[%emt 0:00:03]} Bb4 {[%emt 0:00:42]} 5. cxd5 {[%emt 0:00:50]} exd5 {[%emt 0:00:42]} 6. Bg5 {[%emt 0:00:06]} O-O {[%emt 0:02:05]} 7. e3 {[%emt 0:02:22]} Bf5 {[%emt 0:05:17]} 8. Qb3 {[%emt 0:02:45]} Bxc3+ {[%emt 0:18:57]} 9. Qxc3 {[%emt 0:01:17]} c6 {[%emt 0:00:39]} 10. Nd2 {[%emt 0:02:49]} Nbd7 {[%emt 0:00:41]} 11. Be2 {[%emt 0:00:09]} h6 {[%emt 0:00:46]} 12. Bf4 {[%emt 0:01:08]} Ne4 {[%emt 0:01:05]} 13. Nxe4 {[%emt 0:00:24]} dxe4 {[%emt 0:01:29]} 14. g4 {[%emt 0:07:54]} Be6 {[%emt 0:01:58]} 15. Rg1 {[%emt 0:03:27]} Nb6 {[%emt 0:06:23]} 16. Qc2 {[%emt 0:00:46]} g5 {[%emt 0:03:33]} 17. Be5 {[%emt 0:01:28]} Bd5 {[%emt 0:00:23]} 18. h4 {[%emt 0:00:55]} f6 {[%emt 0:00:34]} 19. Bg3 {[%emt 0:00:55]} Kg7 {[%emt 0:00:29]} 20. Rh1 {[%emt 0:00:57]} Qe7 {[%emt 0:01:06]} 21. a3 {[%emt 0:01:24]} Qe6 {[%emt 0:00:44]} 22. Rh2 {[%emt 0:09:59]} Nc4 {[%emt 0:02:51]} 23. O-O-O {[%emt 0:07:01]} Na5 {[%emt 0:01:18]} 24. Rdh1 {[%emt 0:01:13]} Rh8 {[%emt 0:02:55]} 25. hxg5 {[%emt 0:00:20]} hxg5 {[%emt 0:00:17]} 26. f4 {[%emt 0:00:24]} Rxh2 {[%emt 0:01:13]} 27. Rxh2 {[%emt 0:00:11]} Nb3+ {[%emt 0:01:51]} 28. Kb1 {[%emt 0:00:10]} gxf4 {[%emt 0:01:59]} 29. Bxf4 {[%emt 0:00:08]} Rh8 {[%emt 0:00:03]} 30. Rxh8 {[%emt 0:05:59]} Kxh8 {[%emt 0:00:02]} 31. Qc3 {[%emt 0:05:30]} Qf7 {[%emt 0:06:20]} 32. Qb4 {[%emt 0:07:58]} c5 {[%emt 0:01:51]} 33. dxc5 {[%emt 0:01:38]} Qh7 {[%emt 0:00:13]} 34. Qe1 {[%emt 0:02:27]} Nxc5 {[%emt 0:01:34]} 35. Qc3 {[%emt 0:01:03]} Qe7 {[%emt 0:07:04]} 36. Qd4 {[%emt 0:00:38]} Bb3 {[%emt 0:07:00]} 37. Bd6 {[%emt 0:00:31]} 1-0

[Event "48th Indian U15-ch Open 2023"]
[Site "Jalgaon"]
[Date "2023.12.27"]
[Round "1.2"]
[White "Keshav Arora"]
[Black "Shaik Sumer Arsh"]
[Result "0-1"]
[WhiteElo "1447"]
[BlackElo "2255"]
[PlyCount "72"]
[EventDate "2023.12.30"]
[EventType "swiss"]
[EventCountry "IND"]
[TimeControl "5400+30"]

1. d4 {[%emt 0:00:20]} Nf6 {[%emt 0:00:08]} 2. c4 {[%emt 0:00:10]} e6 {[%emt 0:00:06]} 3. Nf3 {[%emt 0:00:41]} d5 {[%emt 0:00:14]} 4. Nc3 {[%emt 0:00:47]} Bb4 {[%emt 0:00:15]} 5. cxd5 {[%emt 0:02:58]} exd5 {[%emt 0:00:14]} 6. Bg5 {[%emt 0:01:23]} h6 {[%emt 0:00:28]} 7. Bxf6 {[%emt 0:10:48]} Qxf6 {[%emt 0:00:16]} 8. Qb3 {[%emt 0:01:49]} Qb6 {[%emt 0:20:07]} 9. e3 {[%emt 0:17:58]} c6 {[%emt 0:02:31]} 10. Bd3 {[%emt 0:00:42]} Bd6 {[%emt 0:09:23]} 11. Qc2 {[%emt 0:04:49]} Bg4 {[%emt 0:03:54]} 12. h3 {[%emt 0:07:45]} Bxf3 {[%emt 0:11:45]} 13. gxf3 {[%emt 0:00:01]} Nd7 {[%emt 0:14:17]} 14. Rg1 {[%emt 0:15:08]} O-O {[%emt 0:06:15]} 15. O-O-O {[%emt 0:05:38]} Nf6 {[%emt 0:01:10]} 16. Rg2 {[%emt 0:00:46]} Rfd8 {[%emt 0:08:18]} 17. Rdg1 {[%emt 0:03:15]} Bf8 {[%emt 0:00:41]} 18. Be2 {[%emt 0:01:16]} c5 {[%emt 0:11:34]} 19. Na4 {[%emt 0:06:50]} Qa5 {[%emt 0:02:31]} 20. dxc5 {[%emt 0:02:08]} Rac8 {[%emt 0:00:35]} 21. Kb1 {[%emt 0:01:56]} d4 {[%emt 0:03:07]} 22. exd4 {[%emt 0:04:04]} Rxd4 {[%emt 0:00:26]} 23. Qf5 {[%emt 0:02:41]} Rc6 {[%emt 0:00:11]} 24. b3 {[%emt 0:03:17]} Rxa4 {[%emt 0:03:02]} 25. bxa4 {[%emt 0:00:44]} Qb4+ {[%emt 0:00:00]} 26. Ka1 {[%emt 0:00:35]} Qc3+ {[%emt 0:00:01]} 27. Kb1 {[%emt 0:00:14]} Qb4+ {[%emt 0:00:02]} 28. Ka1 {[%emt 0:00:23]} Qd4+ {[%emt 0:00:22]} 29. Kb1 {[%emt 0:00:12]} Rxc5 {[%emt 0:00:24]} 30. Qd3 {[%emt 0:00:30]} Qxa4 {[%emt 0:01:39]} 31. Bd1 {[%emt 0:01:28]} Qb4+ {[%emt 0:01:01]} 32. Bb3 {[%emt 0:01:05]} Qb6 {[%emt 0:00:56]} 33. Ka1 {[%emt 0:01:52]} g5 {[%emt 0:00:31]} 34. Qg6+ {[%emt 0:00:56]} Bg7 {[%emt 0:00:01]} 35. Qxf7+ {[%emt 0:00:35]} Kh8 {[%emt 0:00:06]} 36. Re1 {[%emt 0:01:04]} Ne4+ {[%emt 0:00:12]} 0-1

[Event "48th Indian U15-ch Open 2023"]
[Site "Jalgaon"]
[Date "2023.12.27"]
[Round "1.3"]
[White "Md Imran"]
[Black "Dolas, Aarush"]
[Result "1-0"]
[WhiteElo "2174"]
[BlackElo "1445"]
[PlyCount "171"]
[EventDate "2023.12.30"]
[EventType "swiss"]
[EventCountry "IND"]
[TimeControl "5400+30"]

1. Nf3 {[%emt 0:00:35]} Nf6 {[%emt 0:00:14]} 2. d4 {[%emt 0:00:49]} d5 {[%emt 0:00:29]} 3. Bf4 {[%emt 0:00:57]} Bf5 {[%emt 0:01:05]} 4. e3 {[%emt 0:00:46]} e6 {[%emt 0:00:27]} 5. Bd3 {[%emt 0:00:13]} Bg6 {[%emt 0:00:30]} 6. O-O {[%emt 0:02:28]} Bd6 {[%emt 0:00:40]} 7. Ne5 {[%emt 0:00:11]} O-O {[%emt 0:00:53]} 8. Nd2 {[%emt 0:00:30]} Bxd3 {[%emt 0:01:38]} 9. cxd3 {[%emt 0:00:29]} Nfd7 {[%emt 0:00:51]} 10. Qb3 {[%emt 0:01:01]} Bxe5 {[%emt 0:00:55]} 11. dxe5 {[%emt 0:00:19]} Qc8 {[%emt 0:01:09]} 12. Rac1 {[%emt 0:00:22]} c5 {[%emt 0:01:04]} 13. e4 {[%emt 0:00:46]} Nc6 {[%emt 0:02:40]} 14. exd5 {[%emt 0:00:29]} Nd4 {[%emt 0:01:21]} 15. Qd1 {[%emt 0:00:01]} exd5 {[%emt 0:00:02]} 16. Be3 {[%emt 0:01:08]} Ne6 {[%emt 0:01:34]} 17. d4 {[%emt 0:02:46]} Qe8 {[%emt 0:02:00]} 18. Nf3 {[%emt 0:02:21]} c4 {[%emt 0:00:36]} 19. Nh4 {[%emt 0:05:14]} f5 {[%emt 0:05:11]} 20. Qf3 {[%emt 0:08:54]} f4 {[%emt 0:08:02]} 21. Qxd5 {[%emt 0:00:03]} Nb6 {[%emt 0:01:23]} 22. Qxb7 {[%emt 0:00:23]} fxe3 {[%emt 0:01:05]} 23. fxe3 {[%emt 0:00:02]} Qh5 {[%emt 0:04:57]} 24. Nf3 {[%emt 0:01:31]} Rf7 {[%emt 0:03:13]} 25. Qc6 {[%emt 0:04:59]} Qh6 {[%emt 0:02:48]} 26. Qe4 {[%emt 0:07:35]} Raf8 {[%emt 0:09:42]} 27. b3 {[%emt 0:00:53]} cxb3 {[%emt 0:07:52]} 28. axb3 {[%emt 0:00:03]} Qg6 {[%emt 0:04:37]} 29. Qxg6 {[%emt 0:00:26]} hxg6 {[%emt 0:00:07]} 30. Rfe1 {[%emt 0:03:50]} g5 {[%emt 0:11:08]} 31. h3 {[%emt 0:00:23]} Rd7 {[%emt 0:12:18]} 32. Rc6 {[%emt 0:00:36]} Re8 {[%emt 0:00:07]} 33. Kf2 {[%emt 0:02:58]} Nd5 {[%emt 0:00:51]} 34. Kg3 {[%emt 0:01:57]} Nb4 {[%emt 0:04:18]} 35. Rc4 {[%emt 0:00:33]} Nd5 {[%emt 0:04:06]} 36. e4 {[%emt 0:01:10]} Nb6 {[%emt 0:00:01]} 37. Rb4 {[%emt 0:00:01]} Nf4 {[%emt 0:00:01]} 38. Rb5 {[%emt 0:02:14]} Rdd8 {[%emt 0:01:42]} 39. Re3 {[%emt 0:02:26]} Ng6 {[%emt 0:01:03]} 40. Ra5 {[%emt 0:01:53]} Re7 {[%emt 0:00:23]} 41. Rc5 {[%emt 0:00:50]} Rdd7 {[%emt 0:02:01]} 42. Rc6 {[%emt 0:00:25]} Nf8 {[%emt 0:00:48]} 43. d5 {[%emt 0:00:32]} Nxd5 {[%emt 0:00:20]} 44. exd5 {[%emt 0:00:02]} Rxd5 {[%emt 0:00:01]} 45. Rc8 {[%emt 0:00:09]} g6 {[%emt 0:00:42]} 46. Kg4 {[%emt 0:01:07]} Kg7 {[%emt 0:00:37]} 47. Kxg5 {[%emt 0:00:51]} Ne6+ {[%emt 0:00:05]} 48. Kg4 {[%emt 0:00:04]} Nd4 {[%emt 0:00:35]} 49. Rd3 {[%emt 0:00:47]} Nf5 {[%emt 0:01:22]} 50. Rxd5 {[%emt 0:00:18]} Ne3+ {[%emt 0:00:08]} 51. Kg5 {[%emt 0:00:01]} Nxd5 {[%emt 0:00:14]} 52. Rc6 {[%emt 0:00:02]} Rb7 {[%emt 0:02:04]} 53. Rxg6+ {[%emt 0:00:11]} Kh7 {[%emt 0:00:10]} 54. Rd6 {[%emt 0:00:14]} Ne7 {[%emt 0:00:35]} 55. Nd4 {[%emt 0:00:12]} Kg7 {[%emt 0:01:42]} 56. Nf5+ {[%emt 0:00:05]} Nxf5 {[%emt 0:00:15]} 57. Kxf5 {[%emt 0:00:03]} Rxb3 {[%emt 0:00:59]} 58. Rd7+ {[%emt 0:00:01]} Kf8 {[%emt 0:00:07]} 59. Rxa7 {[%emt 0:00:04]} Rb2 {[%emt 0:00:16]} 60. g3 {[%emt 0:00:04]} Rf2+ {[%emt 0:00:07]} 61. Kg4 {[%emt 0:00:04]} Re2 {[%emt 0:00:08]} 62. Kf4 {[%emt 0:00:02]} Re1 {[%emt 0:00:17]} 63. Ra3 {[%emt 0:00:04]} Ke7 {[%emt 0:00:07]} 64. h4 {[%emt 0:00:01]} Ke6 {[%emt 0:00:19]} 65. Ra6+ {[%emt 0:00:02]} Ke7 {[%emt 0:00:05]} 66. h5 {[%emt 0:00:07]} Rf1+ {[%emt 0:00:02]} 67. Kg5 {[%emt 0:00:03]} Re1 {[%emt 0:00:06]} 68. Ra7+ {[%emt 0:00:07]} Ke6 {[%emt 0:00:12]} 69. g4 {[%emt 0:00:04]} Rxe5+ {[%emt 0:00:05]} 70. Kg6 {[%emt 0:00:00]} Rb5 {[%emt 0:00:37]} 71. h6 {[%emt 0:00:04]} Rb8 {[%emt 0:00:41]} 72. h7 {[%emt 0:00:02]} Rc8 {[%emt 0:00:06]} 73. Rg7 {[%emt 0:00:01]} Rc4 {[%emt 0:00:19]} 74. g5 {[%emt 0:00:06]} Rh4 {[%emt 0:00:08]} 75. Rg8 {[%emt 0:00:01]} Ke7 {[%emt 0:00:19]} 76. h8=R {[%emt 0:00:08]} Rxh8 {[%emt 0:00:17]} 77. Rxh8 {[%emt 0:00:03]} Kd7 {[%emt 0:00:06]} 78. Kf6 {[%emt 0:00:03]} Kc7 {[%emt 0:00:05]} 79. g6 {[%emt 0:00:04]} Kd6 {[%emt 0:00:03]} 80. g7 {[%emt 0:00:03]} Kd5 {[%emt 0:00:06]} 81. g8=R {[%emt 0:00:46]} Kd6 {[%emt 0:00:13]} 82. Rd8+ {[%emt 0:00:05]} Kc7 {[%emt 0:00:09]} 83. Ke6 {[%emt 0:00:05]} Kb7 {[%emt 0:00:05]} 84. Kd6 {[%emt 0:00:02]} Ka6 {[%emt 0:00:13]} 85. Rb8 {[%emt 0:00:04]} Ka5 {[%emt 0:00:10]} 86. Rh4 {[%emt 0:00:17]} 1-0

[Event "48th Indian U15-ch Open 2023"]
[Site "Jalgaon"]
[Date "2023.12.27"]
[Round "1.4"]
[White "Arnav Agrawal"]
[Black "Vignesh Advaith Vemula"]
[Result "0-1"]
[WhiteElo "1442"]
[BlackElo "2028"]
[PlyCount "108"]
[EventDate "2023.12.30"]
[EventType "swiss"]
[EventCountry "IND"]
[TimeControl "5400+30"]

1. d4 {[%emt 4:51:21]} d5 {[%emt 0:00:07]} 2. c4 {[%emt 0:00:05]} e6 {[%emt 0:00:04]} 3. Nc3 {[%emt 0:00:05]} Be7 {[%emt 0:00:04]} 4. Nf3 {[%emt 0:00:23]} Nf6 {[%emt 0:00:08]} 5. Bf4 {[%emt 0:00:06]} O-O {[%emt 0:00:09]} 6. e3 {[%emt 0:00:04]} b6 {[%emt 0:00:06]} 7. cxd5 {[%emt 0:00:15]} exd5 {[%emt 0:00:06]} 8. Bd3 {[%emt 0:00:06]} Bb7 {[%emt 0:00:04]} 9. Rc1 {[%emt 0:01:13]} c5 {[%emt 0:00:35]} 10. O-O {[%emt 0:00:00]} Nc6 {[%emt 0:01:09]} 11. Ne5 {[%emt 0:00:00]} Qc8 {[%emt 0:00:42]} 12. Bb1 {[%emt 0:01:20]} Qe6 {[%emt 0:03:08]} 13. Nb5 {[%emt 0:00:00]} Rfc8 {[%emt 0:01:23]} 14. Nxc6 {[%emt 0:00:00]} Qxc6 {[%emt 0:00:49]} 15. Nc3 {[%emt 0:00:00]} Rd8 {[%emt 0:04:49]} 16. Qf3 {[%emt 0:00:00]} g6 {[%emt 0:03:55]} 17. Rfd1 {[%emt 0:00:00]} Rac8 {[%emt 0:01:49]} 18. a4 {[%emt 0:00:00]} a6 {[%emt 0:03:27]} 19. dxc5 {[%emt 0:00:00]} bxc5 {[%emt 0:01:27]} 20. Bg5 {[%emt 0:00:00]} Qe6 {[%emt 0:17:43]} 21. Ne2 {[%emt 0:00:00]} Qe5 {[%emt 0:06:12]} 22. Bxf6 {[%emt 0:00:00]} Bxf6 {[%emt 0:00:42]} 23. Rd2 {[%emt 0:00:00]} Qe7 {[%emt 0:00:56]} 24. Ng3 {[%emt 0:00:00]} Bg7 {[%emt 0:03:05]} 25. b3 {[%emt 0:00:00]} Bc6 {[%emt 0:05:49]} 26. Qe2 {[%emt 0:00:00]} c4 {[%emt 0:02:30]} 27. bxc4 {[%emt 0:00:00]} Bxa4 {[%emt 0:01:30]} 28. Ba2 {[%emt 0:00:00]} Bb5 {[%emt 0:02:47]} 29. Rdc2 {[%emt 0:00:00]} Ba4 {[%emt 0:10:46]} 30. Rd2 {[%emt 0:00:00]} Qa3 {[%emt 0:03:57]} 31. Rb1 {[%emt 0:00:00]} d4 {[%emt 0:02:12]} 32. Rd3 {[%emt 0:00:00]} Qc5 {[%emt 0:05:03]} 33. Ne4 {[%emt 0:00:00]} Qe7 {[%emt 0:00:49]} 34. exd4 {[%emt 0:00:00]} Bxd4 {[%emt 0:00:06]} 35. Re1 {[%emt 0:00:00]} Bc6 {[%emt 0:03:40]} 36. Nc3 {[%emt 0:00:00]} Qxe2 {[%emt 0:00:16]} 37. Nxe2 {[%emt 0:00:00]} Bxf2+ {[%emt 0:00:03]} 38. Kxf2 {[%emt 0:00:00]} Rxd3 {[%emt 0:00:04]} 39. Bb1 {[%emt 0:00:00]} Rd2 {[%emt 0:00:24]} 40. Ke3 {[%emt 0:00:00]} Rb2 {[%emt 0:00:08]} 41. Bd3 {[%emt 0:00:00]} Bxg2 {[%emt 0:01:06]} 42. Ra1 {[%emt 0:00:00]} Re8+ {[%emt 0:00:24]} 43. Kd4 {[%emt 0:00:00]} Rexe2 {[%emt 0:00:11]} 44. Bxe2 {[%emt 0:00:00]} Rxe2 {[%emt 0:00:03]} 45. Rxa6 {[%emt 0:00:00]} Rd2+ {[%emt 0:00:12]} 46. Kc3 {[%emt 0:00:00]} Rd1 {[%emt 0:00:46]} 47. Ra2 {[%emt 0:00:00]} Be4 {[%emt 0:00:10]} 48. Kb4 {[%emt 0:00:00]} Rc1 {[%emt 0:00:14]} 49. c5 {[%emt 0:00:00]} f5 {[%emt 0:00:14]} 50. Re2 {[%emt 0:00:00]} Rc2 {[%emt 0:00:31]} 51. Rxc2 {[%emt 0:00:00]} Bxc2 {[%emt 0:00:04]} 52. c6 {[%emt 0:00:00]} f4 {[%emt 0:00:03]} 53. c7 {[%emt 0:00:00]} Bf5 {[%emt 0:00:05]} 54. Kc3 {[%emt 0:00:00]} Kf7 {[%emt 0:00:04]} 0-1

[Event "48th Indian U15-ch Open 2023"]
[Site "Jalgaon"]
[Date "2023.12.27"]
[Round "1.5"]
[White "Vivaan Vijay Saraogi"]
[Black "Adwaith Praveen"]
[Result "1-0"]
[WhiteElo "1982"]
[BlackElo "1434"]
[PlyCount "60"]
[EventDate "2023.12.30"]
[EventType "swiss"]
[EventCountry "IND"]
[TimeControl "5400+30"]

1. e4 {[%emt 0:00:05]} e5 {[%emt 0:00:17]} 2. Nf3 {[%emt 0:00:12]} Nc6 {[%emt 0:00:08]} 3. Bb5 {[%emt 0:00:15]} a6 {[%emt 0:00:10]} 4. Ba4 {[%emt 0:00:03]} Nge7 {[%emt 0:00:17]} 5. c3 {[%emt 0:00:33]} g6 {[%emt 0:00:09]} 6. O-O {[%emt 0:00:13]} Bg7 {[%emt 0:00:05]} 7. d4 {[%emt 0:00:14]} exd4 {[%emt 0:00:05]} 8. cxd4 {[%emt 0:00:08]} b5 {[%emt 0:00:06]} 9. Bc2 {[%emt 0:00:47]} d5 {[%emt 0:00:45]} 10. exd5 {[%emt 0:00:31]} Nb4 {[%emt 0:01:10]} 11. Re1 {[%emt 0:07:42]} Nxc2 {[%emt 0:01:07]} 12. Qxc2 {[%emt 0:01:13]} O-O {[%emt 0:07:59]} 13. Nc3 {[%emt 0:15:00]} Bb7 {[%emt 0:15:39]} 14. Ne4 {[%emt 0:35:46]} Nxd5 {[%emt 0:18:17]} 15. Bg5 {[%emt 0:01:03]} Nf6 {[%emt 0:16:36]} 16. Ne5 {[%emt 0:05:37]} Bxe4 {[%emt 0:03:37]} 17. Rxe4 {[%emt 0:00:05]} Qd5 {[%emt 0:03:33]} 18. Bxf6 {[%emt 0:02:43]} Bxf6 {[%emt 0:00:11]} 19. Rae1 {[%emt 0:01:51]} Bxe5 {[%emt 0:03:15]} 20. dxe5 {[%emt 0:00:12]} Qxa2 {[%emt 0:08:37]} 21. Qxc7 {[%emt 0:16:36]} Qxb2 {[%emt 0:08:42]} 22. Qe7 {[%emt 0:04:02]} Rfe8 {[%emt 0:02:04]} 23. Qg5 {[%emt 0:01:00]} Re6 {[%emt 0:05:09]} 24. f4 {[%emt 0:03:36]} Rae8 {[%emt 0:00:36]} 25. Qh6 {[%emt 0:02:24]} f6 {[%emt 0:02:15]} 26. f5 {[%emt 0:00:16]} gxf5 {[%emt 0:01:14]} 27. exf6 {[%emt 0:00:13]} Qd4+ {[%emt 0:01:25]} 28. Rxd4 {[%emt 0:00:23]} Rxe1+ {[%emt 0:00:02]} 29. Kf2 {[%emt 0:00:01]} R1e2+ {[%emt 0:00:47]} 30. Kf3 {[%emt 0:00:24]} R2e3+ {[%emt 0:00:42]} 1-0

[Event "48th Indian U15-ch Open 2023"]
[Site "Jalgaon"]
[Date "2023.12.27"]
[Round "1.6"]
[White "Vaz, Edrick"]
[Black "Mrithyunjay Mahadevan"]
[Result "0-1"]
[WhiteElo "1432"]
[BlackElo "1944"]
[PlyCount "148"]
[EventDate "2023.12.30"]
[EventType "swiss"]
[EventCountry "IND"]
[TimeControl "5400+30"]

1. e4 {[%emt 0:00:03]} c5 {[%emt 0:00:08]} 2. c3 {[%emt 0:00:07]} e6 {[%emt 0:04:35]} 3. d4 {[%emt 0:00:14]} d5 {[%emt 0:00:07]} 4. exd5 {[%emt 0:02:55]} Qxd5 {[%emt 0:00:21]} 5. Nf3 {[%emt 0:00:11]} Nc6 {[%emt 0:02:45]} 6. Be2 {[%emt 0:01:23]} Nf6 {[%emt 0:01:38]} 7. O-O {[%emt 0:01:57]} Be7 {[%emt 0:00:31]} 8. Na3 {[%emt 0:02:11]} O-O {[%emt 0:02:06]} 9. Nb5 {[%emt 0:07:42]} Qd7 {[%emt 0:00:14]} 10. dxc5 {[%emt 0:14:26]} Bxc5 {[%emt 0:00:10]} 11. Qxd7 {[%emt 0:05:57]} Bxd7 {[%emt 0:00:06]} 12. Bf4 {[%emt 0:02:15]} a6 {[%emt 0:00:35]} 13. Bd6 {[%emt 0:03:22]} Bxd6 {[%emt 0:05:22]} 14. Nxd6 {[%emt 0:00:05]} b5 {[%emt 0:06:05]} 15. Rfd1 {[%emt 0:10:28]} h6 {[%emt 0:03:05]} 16. h3 {[%emt 0:04:52]} Rfb8 {[%emt 0:01:14]} 17. a3 {[%emt 0:02:00]} Kf8 {[%emt 0:01:59]} 18. Nd2 {[%emt 0:24:49]} Ne5 {[%emt 0:03:45]} 19. f4 {[%emt 0:01:26]} Ng6 {[%emt 0:00:20]} 20. Bf3 {[%emt 0:00:56]} Nd5 {[%emt 0:00:39]} 21. g3 {[%emt 0:05:14]} Bc6 {[%emt 0:01:41]} 22. Nb3 {[%emt 0:01:18]} Rd8 {[%emt 0:02:20]} 23. Ne4 {[%emt 0:01:18]} Nge7 {[%emt 0:03:02]} 24. Na5 {[%emt 0:04:04]} Ra7 {[%emt 0:04:43]} 25. Nxc6 {[%emt 0:01:26]} Nxc6 {[%emt 0:00:06]} 26. Nc5 {[%emt 0:00:27]} Nce7 {[%emt 0:00:14]} 27. Kf2 {[%emt 0:02:07]} Rc8 {[%emt 0:00:48]} 28. Nb3 {[%emt 0:00:30]} g6 {[%emt 0:01:23]} 29. Rd2 {[%emt 0:00:39]} a5 {[%emt 0:00:23]} 30. Nd4 {[%emt 0:00:30]} Rb7 {[%emt 0:00:11]} 31. Rdd1 {[%emt 0:00:36]} b4 {[%emt 0:00:43]} 32. axb4 {[%emt 0:00:26]} axb4 {[%emt 0:00:03]} 33. cxb4 {[%emt 0:00:32]} Rxb4 {[%emt 0:00:02]} 34. b3 {[%emt 0:00:27]} Rc3 {[%emt 0:08:06]} 35. Ra8+ {[%emt 0:00:04]} Kg7 {[%emt 0:00:06]} 36. Ra4 {[%emt 0:01:01]} Rcxb3 {[%emt 0:00:07]} 37. Nxb3 {[%emt 0:00:22]} Rxa4 {[%emt 0:00:03]} 38. Rd2 {[%emt 0:00:32]} Kf6 {[%emt 0:01:01]} 39. Nc5 {[%emt 0:00:22]} Ra3 {[%emt 0:00:30]} 40. Ne4+ {[%emt 0:00:32]} Kg7 {[%emt 0:00:07]} 41. Nd6 {[%emt 0:00:19]} Ra6 {[%emt 0:00:44]} 42. Nc4 {[%emt 0:00:42]} Kf6 {[%emt 0:00:50]} 43. Ne5 {[%emt 0:00:19]} g5 {[%emt 0:00:11]} 44. Nd7+ {[%emt 0:00:24]} Kg7 {[%emt 0:00:06]} 45. fxg5 {[%emt 0:00:55]} hxg5 {[%emt 0:00:02]} 46. Nc5 {[%emt 0:00:25]} Ra5 {[%emt 0:00:11]} 47. Ne4 {[%emt 0:00:18]} Kg6 {[%emt 0:00:02]} 48. Nd6 {[%emt 0:00:30]} Nc3 {[%emt 0:02:26]} 49. Nc4 {[%emt 0:00:42]} Rc5 {[%emt 0:00:18]} 50. Ne3 {[%emt 0:00:37]} f5 {[%emt 0:00:28]} 51. Rd7 {[%emt 0:00:29]} Ncd5 {[%emt 0:00:32]} 52. Nxd5 {[%emt 0:00:29]} Nxd5 {[%emt 0:00:02]} 53. Bxd5 {[%emt 0:00:26]} Rxd5 {[%emt 0:00:07]} 54. Ra7 {[%emt 0:00:24]} Rd2+ {[%emt 0:00:23]} 55. Kg1 {[%emt 0:00:24]} Rd3 {[%emt 0:00:12]} 56. Kf2 {[%emt 0:00:29]} f4 {[%emt 0:00:09]} 57. gxf4 {[%emt 0:00:28]} gxf4 {[%emt 0:00:06]} 58. Ra4 {[%emt 0:00:47]} Kf5 {[%emt 0:00:07]} 59. Kg2 {[%emt 0:00:27]} Rd2+ {[%emt 0:00:24]} 60. Kg1 {[%emt 0:00:35]} e5 {[%emt 0:00:06]} 61. Rb4 {[%emt 0:00:30]} f3 {[%emt 0:00:38]} 62. h4 {[%emt 0:00:21]} e4 {[%emt 0:00:06]} 63. Rb8 {[%emt 0:00:25]} Kf4 {[%emt 0:00:19]} 64. Rf8+ {[%emt 0:00:18]} Ke3 {[%emt 0:00:33]} 65. h5 {[%emt 0:00:15]} Rd1+ {[%emt 0:00:02]} 66. Kh2 {[%emt 0:00:05]} f2 {[%emt 0:00:09]} 67. h6 {[%emt 0:00:56]} f1=Q {[%emt 0:00:15]} 68. Rxf1 {[%emt 0:00:20]} Rxf1 {[%emt 0:00:02]} 69. h7 {[%emt 0:00:06]} Rf8 {[%emt 0:00:08]} 70. Kg3 {[%emt 0:00:49]} Kd2 {[%emt 0:00:01]} 71. Kg4 {[%emt 0:00:14]} e3 {[%emt 0:00:02]} 72. Kg5 {[%emt 0:00:06]} e2 {[%emt 0:00:03]} 73. Kg6 {[%emt 0:00:04]} e1=Q {[%emt 0:00:08]} 74. h8=Q {[%emt 0:00:31]} Qg3+ {[%emt 0:00:44]} 0-1

[Event "48th Indian U15-ch Open 2023"]
[Site "Jalgaon"]
[Date "2023.12.27"]
[Round "1.7"]
[White "Samyak Dharewa"]
[Black "Ishan Roy"]
[Result "1-0"]
[WhiteElo "1939"]
[BlackElo "1422"]
[PlyCount "77"]
[EventDate "2023.12.30"]
[EventType "swiss"]
[EventCountry "IND"]
[TimeControl "5400+30"]

1. e4 {[%emt 0:17:28]} e6 {[%emt 0:00:35]} 2. Nf3 {[%emt 0:00:13]} d5 {[%emt 0:00:27]} 3. Nc3 {[%emt 0:00:12]} Bb4 {[%emt 0:04:40]} 4. e5 {[%emt 0:02:46]} c5 {[%emt 0:04:00]} 5. Nb5 {[%emt 0:02:55]} Nc6 {[%emt 0:11:11]} 6. c3 {[%emt 0:06:57]} Ba5 {[%emt 0:01:44]} 7. d4 {[%emt 0:02:13]} cxd4 {[%emt 0:08:48]} 8. Nbxd4 {[%emt 0:00:50]} Nge7 {[%emt 0:04:15]} 9. Bd3 {[%emt 0:00:54]} Nxd4 {[%emt 0:04:39]} 10. Nxd4 {[%emt 0:00:07]} Qc7 {[%emt 0:00:15]} 11. O-O {[%emt 0:02:18]} Bd7 {[%emt 0:08:46]} 12. f4 {[%emt 0:03:22]} Nc6 {[%emt 0:13:54]} 13. Nb5 {[%emt 0:07:18]} Qd8 {[%emt 0:14:51]} 14. Qh5 {[%emt 0:12:32]} Bb6+ {[%emt 0:07:29]} 15. Kh1 {[%emt 0:00:21]} Bc5 {[%emt 0:00:34]} 16. f5 {[%emt 0:07:58]} a6 {[%emt 0:08:28]} 17. Bg5 {[%emt 0:01:38]} Qb6 {[%emt 0:02:13]} 18. Nd6+ {[%emt 0:02:14]} Bxd6 {[%emt 0:00:18]} 19. exd6 {[%emt 0:00:24]} e5 {[%emt 0:01:07]} 20. f6 {[%emt 0:02:21]} g6 {[%emt 0:01:07]} 21. Bxg6 {[%emt 0:00:10]} O-O-O {[%emt 0:00:16]} 22. Bxf7 {[%emt 0:00:31]} Qc5 {[%emt 0:02:28]} 23. Rad1 d4 {[%emt 0:00:38]} 24. cxd4 {[%emt 0:01:38]} exd4 {[%emt 0:00:01]} 25. Bf4 {[%emt 0:00:18]} Qxh5 {[%emt 0:00:53]} 26. Bxh5 {[%emt 0:00:02]} Rhf8 {[%emt 0:00:41]} 27. Bh6 {[%emt 0:00:48]} Rh8 {[%emt 0:00:27]} 28. f7 {[%emt 0:00:23]} Rhf8 {[%emt 0:00:31]} 29. Rfe1 {[%emt 0:01:56]} Nb4 {[%emt 0:00:35]} 30. Rxd4 {[%emt 0:00:53]} Nc6 {[%emt 0:00:14]} 31. Rdd1 {[%emt 0:00:21]} b5 {[%emt 0:00:06]} 32. Bxf8 {[%emt 0:00:22]} Rxf8 {[%emt 0:00:08]} 33. Re8+ {[%emt 0:00:10]} Bxe8 {[%emt 0:01:08]} 34. fxe8=Q+ {[%emt 0:00:12]} Rxe8 {[%emt 0:00:07]} 35. Bxe8 {[%emt 0:00:07]} Nd8 {[%emt 0:00:06]} 36. Rc1+ {[%emt 0:00:13]} Kb7 {[%emt 0:00:09]} 37. d7 {[%emt 0:00:20]} h5 {[%emt 0:00:23]} 38. Rc8 {[%emt 0:00:10]} Ne6 {[%emt 0:00:06]} 39. Bf7 {[%emt 0:00:09]} 1-0